Workbook

Sheet Revised Regulatory Proposal
L1: Escalation
A2: Measure | B2: 2014-15 | C2: 2015-16 | D2: 2016-17 | E2: 2017-18 | F2: 2018-19 | G2: Targets | L2: Index Numbers All groups CPI
A3: Unplanned SAIDI - CBD | B3: =B74+$C40 -> 8.285982545 | C3: =C74+$C40 -> 7.456982545 | D3: 5.576982545 | E3: 5.432982545 | F3: 6.314982545 | G3: =AVERAGE(B3:F3) -> 6.613582545 | L3: 2014-09-01 | M3: 106.4
A4: Unplanned SAIDI - urban | B4: =B75+$D40 -> 74.17698254 | C4: =C75+$D40 -> 57.29698254 | D4: 57.46698254 | E4: 57.96698254 | F4: 52.32898254 | G4: =AVERAGE(B4:F4) -> 59.84738254 | L4: 2018-12-01 | M4: 116.9
A5: Unplanned SAIDI - short rural | B5: =B76+$E40 -> 150.2709825 | C5: =C76+$E40 -> 135.1369825 | D5: 127.5669825 | E5: 125.7469825 | F5: 145.3799825 | G5: =AVERAGE(B5:F5) -> 136.8203825 | L5: CPI | M5: =M4/M3-1 -> 0.09868421053
A6: Unplanned SAIDI - long rural | L6: Source: ABS
A8: Unplanned SAIFI - CBD | B8: =B79+$C41 -> 0.1970637549 | C8: =C79+$C41 -> 0.05666375488 | D8: 0.04946375488 | E8: 0.04856375488 | F8: 0.05076375488 | G8: =AVERAGE(B8:F8) -> 0.08050375488
A9: Unplanned SAIFI - urban | B9: =B80+$D41 -> 0.7544637549 | C9: =C80+$D41 -> 0.6517637549 | D9: 0.6237637549 | E9: 0.5756637549 | F9: 0.5951637549 | G9: =AVERAGE(B9:F9) -> 0.6401637549
A10: Unplanned SAIFI - short rural | B10: =B81+$E41 -> 1.469763755 | C10: =C81+$E41 -> 1.280763755 | D10: 1.239763755 | E10: 1.121763755 | F10: 1.238863755 | G10: =AVERAGE(B10:F10) -> 1.270183755
A11: Unplanned SAIFI - long rural
A13: Telephone answering parameter (measured as a percentage in STPIS) | B13: ='[3]Actual Performance'!G$18 -> 82.7 | C13: ='[3]Actual Performance'!H$18 -> 91.5 | D13: ='[3]Actual Performance'!I$18 -> 88.5 | E13: ='[3]Actual Performance'!J$18 -> 88.1 | F13: ='[3]Actual Performance'!K$18 -> 89.6 | G13: =AVERAGE(B13:F13) -> 88.08
C18: CBD | D18: Urban | E18: Short rural
A19: Output parmaeters
A20: ir - SAIDI | C20: =((C23*(1+C24)*(1-(1/(1+C25)))*C26)/C27)/(365.25*24*60)*100 -> 0.003273499368 | D20: =((D23*(1+D24)*(1-(1/(1+D25)))*D26)/D27)/(365.25*24*60)*100 -> 0.07039373779 | E20: =((E23*(1+E24)*(1-(1/(1+E25)))*E26)/E27)/(365.25*24*60)*100 -> 0.01781370111
A21: ir - SAIFI | C21: =(C23*(1+C24)/(1+C25))*C26/C27/(365.25*24*60)*C28/C29*100 -> 0.1792840455 | D21: =(D23*(1+D24)/(1+D25))*D26/D27/(365.25*24*60)*D28/D29*100 -> 4.387295097 | E21: =(E23*(1+E24)/(1+E25))*E26/E27/(365.25*24*60)*E28/E29*100 -> 1.279225619
A22: Input parameters
A23: VCR | C23: ='[4]Reliablity Incentive Rates'!$E$78 -> 44720 | D23: ='[4]Reliablity Incentive Rates'!$E$79 -> 39710 | E23: ='[4]Reliablity Incentive Rates'!$E$79 -> 39710
A24: CPI | C24: =M5 -> 0.09868421053 | D24: =M5 -> 0.09868421053 | E24: =M5 -> 0.09868421053
A25: w_n | C25: 1.5 | D25: 1.5 | E25: 1.5
A26: C_n | C26: =I95 -> 654006.5993 | D26: =I96 -> 15838199.29 | E26: =I97 -> 4007983.622
A27: R | C27: =G30 -> 1119806750 | D27: =$G$30 -> 1119806750 | E27: =$G$30 -> 1119806750
A28: SAIDI | C28: =G3 -> 6.613582545 | D28: =G4 -> 59.84738254 | E28: =G5 -> 136.8203825
A29: SAIFI | C29: =G8 -> 0.08050375488 | D29: =G9 -> 0.6401637549 | E29: =G10 -> 1.270183755
A30: Smoothed MAR | G30: =AVERAGE('[5]Revenue summary'!$G$44:$K$44)*1000000 -> 1119806750
A32: %above cap exlcuding telephone answering | D32: =G89 -> 0.02699262386 | H32: UPDATED BY EQ - Consistent with discussion with the AER that the averaging in undertaken in rows 86 and 89
A33: SAIDI proportion | D33: =D32*0.6 -> 0.01619557432
A34: SAIFI proportion | D34: =D32*0.4 -> 0.01079704954 | G34: TOTAL
A35: SAIDI Incentive rates in current regulatory period | C35: 2.8e-05 | D35: 0.000494 | E35: 0.000116 | G35: =SUM(C35:E35) -> 0.000638
A36: Adj required to 2025-25 RCP reliability targets due to R@R cap for 2015/16 SAIDI | C36: =$D33*C$35/$G$35 -> 0.0007107775562 | D36: =$D33*D$35/$G$35 -> 0.01254014689 | E36: 0.002944649876
A37: SAIFI Incentive rates in current regulatory period | C37: 0.002735 | D37: 0.033749 | E37: 0.009693 | G37: =SUM(C37:E37) -> 0.046177
A38: Adj required to 2025-25 RCP reliability targets due to R@R cap for 2015/16 SAIFI | C38: =$D34*C$37/$G$37 -> 0.0006394943479 | D38: =$D34*D$37/$G$37 -> 0.007891149817 | E38: 0.00226640538
A40: Adj required to 2025-25 RCP reliability targets due to R@R | C40: =(C36/C35)/5 -> 5.076982545 | D40: =D36/D35/5 -> 5.076982545 | E40: 5.076982545
A41: Adj required to 2025-25 RCP reliability targets due to R@R | C41: =C38/C37/5 -> 0.04676375488 | D41: =D38/D37/5 -> 0.04676375488 | E41: 0.04676375488
A43: Output tables
A44: Table 1 incentive rates
B45: =C18 -> CBD | C45: =D18 -> Urban | D45: =E18 -> Short rural
A46: SAIDI | B46: =C20 -> 0.003273499368 | C46: 0.07039373779 | D46: 0.01781370111
A47: SAIFI | B47: 0.1792840455 | C47: 4.387295097 | D47: 1.279225619
A49: Table 2 targets
B50: value
A51: =B45 -> CBD
A52: SAIDI | B52: =G3 -> 6.613582545
A53: SAIFI | B53: =G8 -> 0.08050375488
A54: =C45 -> Urban
A55: SAIDI | B55: =G4 -> 59.84738254
A56: SAIFI | B56: =G9 -> 0.6401637549
A57: =D45 -> Short rural
A58: SAIDI | B58: =G5 -> 136.8203825
A59: SAIFI | B59: =G10 -> 1.270183755
A60: Telephone answering
A61: Percentage of calls will be answered within 30 seconds | B61: =G13 -> 88.08
A63: Table 3
B64: =B45 -> CBD | C64: =C45 -> Urban | D64: =D45 -> Short rural
A65: VCR | B65: =C23 -> 44720 | C65: =D23 -> 39710 | D65: =E23 -> 39710
A72: Backcasted data (<= 3MIN Momentary Removed)
A73: Measure | B73: =B2 -> 2014-15 | C73: =C2 -> 2015-16 | D73: 2016-17 | E73: 2017-18 | F73: 2018-19
A74: Unplanned SAIDI - CBD | B74: 3.209 | C74: 2.38 | D74: 0.5 | E74: 0.356 | F74: 1.238
A75: Unplanned SAIDI - urban | B75: 69.1 | C75: 52.22 | D75: 52.39 | E75: 52.89 | F75: 47.252
A76: Unplanned SAIDI - short rural | B76: 145.194 | C76: 130.06 | D76: 122.49 | E76: 120.67 | F76: 140.303
A77: Unplanned SAIDI - long rural
A79: Unplanned SAIFI - CBD | B79: 0.1503 | C79: 0.0099 | D79: 0.0027 | E79: 0.0018 | F79: 0.004
A80: Unplanned SAIFI - urban | B80: 0.7077 | C80: 0.605 | D80: 0.577 | E80: 0.5289 | F80: 0.5484
A81: Unplanned SAIFI - short rural | B81: 1.423 | C81: 1.234 | D81: 1.193 | E81: 1.075 | F81: 1.1921
A82: Unplanned SAIFI - long rural
A86: S-Factor | B86: =B2 -> 2014-15 | C86: =C2 -> 2015-16 | D86: 2016-17 | E86: 2017-18 | F86: 2018-19 | G86: Cumulative
A87: sum of the raw s-factors for the relaibility of supply parameters | B87: =SUM('[3]S-factor'!I$9:I$15) -> 0.01498137405 | C87: =SUM('[3]S-factor'!J$9:J$15) -> 0.01840890564 | D87: =SUM('[3]S-factor'!K$9:K$15) -> 0.02983066399 | E87: =SUM('[3]S-factor'!L$9:L$15) -> 0.02733540731 | F87: =SUM('[3]S-factor'!M$9:M$15) -> 0.02682655256
A88: Reliability cap | B88: 0.02 | C88: 0.019 | D88: 0.019 | E88: 0.019 | F88: 0.019
A89: performance over the cap | B89: =IF(B87>B88,B87-B88,0) -> 0 | C89: =IF(C87>C88,C87-C88,0) -> 0 | D89: 0.01083066399 | E89: 0.00833540731 | F89: 0.007826552562 | G89: =SUM(B89:F89) -> 0.02699262386
A93: FORECAST ENERGY CONSUMPTION BY NETWORK TYPE
A94: Network Type | C94: Source | D94: 2020-21 | E94: 2021-22 | F94: 2022-23 | G94: 2023-24 | H94: 2024-25 | I94: 5 Year Average MWH
A95: CBD | D95: 652056.127 | E95: 654217.8865 | F95: 653225.2494 | G95: 654183.5863 | H95: 656350.1474 | I95: =AVERAGE(D95:H95) -> 654006.5993
A96: URBAN | D96: 15790964.34 | E96: 15843316.07 | F96: 15819277.19 | G96: 15842485.41 | H96: 15894953.42 | I96: =AVERAGE(D96:H96) -> 15838199.29
A97: SHORT RURAL | D97: 3996030.438 | E97: 4009278.464 | F97: 4003195.233 | G97: 4009068.26 | H97: 4022345.712 | I97: 4007983.622
